bitfinex-derivatives/quotes_ETHF0:USTF0_20251203
["timestamp","ask_amount","ask_price","bid_price","bid_amount"]
[1764731766489,0.00387615,3026.1,3026.0,6.32738662]
[1764731766687,0.00387615,3026.1,3026.0,9.53518662]
[1764731767288,0.00387615,3026.1,3026.0,9.70038662]
[1764731768592,0.00387615,3026.1,3026.0,8.7397]
[1764731770289,4.04987615,3026.1,3026.0,6.4313]
[1764731770487,1.90517615,3026.1,3026.0,5.3667]
[1764731770697,0.00387615,3026.1,3026.0,5.3667]
[1764731771100,1.90517615,3026.1,3026.0,5.3667]
[1764731771291,0.00387615,3026.1,3026.0,5.3667]
[1764731773204,0.00387615,3026.1,3026.0,5.5319]
[1764731773889,0.00387615,3026.1,3026.0,8.7397]
[1764731774095,0.00496114,3026.4,3026.3,4.24158]
[1764731774997,0.00808171,3026.4,3026.3,4.24158]
[1764731777605,0.00808171,3026.4,3026.0,3.2078]
[1764731777797,1.9013,3025.6,3025.5,3.2235]
[1764731777996,4.046,3025.6,3025.5,5.3667]
[1764731778599,4.4344,3026.0,3025.5,5.3667]
[1764731778904,7.2538,3026.0,3025.9,1.9332]
[1764731779100,8.03654455,3026.0,3025.9,1.9332]
[1764731779403,8.03654455,3026.0,3025.9,4.0764]
[1764731779902,7.2538,3026.0,3025.9,4.0764]
[1764731780904,1.9013,3025.6,3025.5,5.3667]
[1764731781498,4.046,3025.6,3025.5,5.3667]
[1764731781695,4.046,3025.6,3025.5,4.0764]
[1764731781900,4.046,3025.6,3025.5,5.3667]
[1764731782209,8.4804,3026.0,3025.9,1.9332]
[1764731782407,8.4804,3026.0,3025.5,1.2903]
[1764731782608,1.9013,3025.6,3025.5,5.3667]
[1764731783110,4.4344,3026.0,3025.5,5.3667]
[1764731783909,7.2538,3026.0,3025.9,4.0764]
[1764731784407,7.2538,3026.0,3025.9,1.9332]
[1764731785305,1.9013,3025.6,3025.5,5.53193]
[1764731785712,4.046,3025.6,3025.5,0.16523]
[1764731785917,4.046,3025.2,3025.1,3.2078]
[1764731786207,7.2538,3025.3,3025.0,1.2903]
[1764731786411,4.046,3025.1,3025.0,5.3667]
[1764731786613,1.9013,3025.1,3025.0,5.3667]
[1764731786809,4.046,3025.1,3025.0,5.3667]
[1764731787114,3.2078,3025.7,3025.6,2.1432]
[1764731787309,5.1091,3025.7,3025.6,4.0764]
[1764731787611,3.2078,3025.7,3025.6,4.0764]
[1764731788017,7.2538,3026.1,3026.0,1.9332]
[1764731788506,5.1091,3026.1,3026.0,5.3667]
[1764731788818,3.2078,3026.1,3026.0,5.3667]
[1764731789114,7.2538,3026.1,3026.0,4.0764]
[1764731789815,7.2538,3026.1,3026.0,1.9332]
[1764731790918,4.046,3026.0,3025.9,0.1652]
[1764731791108,4.046,3026.0,3025.9,2.0984]
[1764731792112,4.046,3026.0,3025.9,0.1652]
[1764731792716,4.046,3026.0,3025.9,2.0984]
[1764731793911,5.1938,3026.1,3026.0,5.0263]
[1764731794112,3.2078,3026.1,3026.0,5.0263]
[1764731794715,1.99408171,3026.4,3026.3,3.8837]
[1764731794912,2.77759527,3026.4,3026.3,3.8837]
[1764731795220,4.80689527,3026.4,3026.3,3.8837]
[1764731795520,1.8711,3026.1,3026.0,4.9353]
[1764731795718,3.82968171,3026.4,3026.3,3.7927]
[1764731796017,4.61357754,3026.4,3026.3,3.7927]
[1764731796316,2.66307754,3026.4,3026.3,3.7927]
[1764731796507,0.00808171,3026.4,3026.3,3.7927]
[1764731796710,1.87918171,3026.4,3026.3,3.7927]
[1764731796907,0.00808171,3026.4,3026.3,3.7927]
[1764731797117,0.00808171,3026.4,3026.3,3.95788]
[1764731797320,0.00543101,3026.4,3026.3,15.29788]
[1764731797516,0.00543101,3026.4,3026.3,16.88305412]
[1764731797718,0.00543101,3026.4,3026.3,20.09085412]
[1764731798119,3.2078,3027.0,3026.9,3.95785]
[1764731798521,40.8,3027.4,3027.3,1.9517]
[1764731798721,40.8,3027.4,3026.9,0.16515]
[1764731798722,3.8216,3027.0,3026.9,0.16515]
[1764731798916,3.8216,3027.0,3026.9,3.95785]
[1764731799118,1.87471172,3027.0,3026.9,3.96210536]
[1764731801123,0.00361172,3027.0,3026.9,3.96210536]
[1764731804328,0.00361172,3027.0,3026.9,4.22518517]
[1764731804734,10.82341172,3027.0,3026.9,0.00425536]
[1764731804926,8.03121172,3027.0,3026.9,0.00425536]
[1764731805119,7.03301172,3027.0,3026.9,1.95595536]
[1764731805434,5.08251172,3027.0,3026.9,3.79695536]
[1764731806231,3.21141172,3027.0,3026.9,3.79695536]
[1764731806926,5.08251172,3027.0,3026.9,3.79695536]
[1764731808430,0.00361172,3027.0,3026.9,3.79695536]
[1764731808635,0.00361172,3027.0,3026.9,3.96210536]
[1764731809536,3.82521172,3027.0,3026.9,3.96210536]
[1764731809738,3.82521172,3027.0,3026.9,2.12110536]
[1764731810042,3.82521172,3027.0,3026.9,3.96210536]
[1764731810338,0.00361172,3027.0,3026.9,3.96210536]
[1764731810735,0.00361172,3027.0,3026.9,15.34010536]
[1764731817941,1.87471172,3027.0,3026.9,13.49910536]
[1764731818145,0.00361172,3027.0,3026.9,15.34010536]
[1764731821136,1.87471172,3027.0,3026.9,15.34010536]
[1764731821436,0.00361172,3027.0,3026.9,15.34010536]
[1764731823042,6.9432,3028.4,3028.3,1.7774]
[1764731823247,7.732675,3028.4,3028.3,1.7774]
[1764731823547,1.7229,3028.1,3028.0,4.8703]
[1764731823945,1.7262415,3028.1,3028.0,4.8703]
[1764731824246,0.0033415,3028.1,3028.0,4.8703]
[1764731826440,0.0033415,3028.1,3028.0,5.03539]
[1764731827038,3.7387415,3028.1,3028.0,5.03539]
[1764731827440,1.7262415,3028.1,3028.0,5.03539]
[1764731827840,0.0033415,3028.1,3028.0,5.03539]
[1764731831250,3.2078,3028.8,3028.7,3.93665]
[1764731832250,3.21066568,3028.8,3028.7,3.93665]
[1764731833048,0.00286568,3028.8,3028.7,9.11623502]
[1764731833244,3.2078,3029.3,3029.2,3.7716]
[1764731833451,3.2078,3029.3,3029.2,15.5106]
[1764731834155,3.21071951,3029.3,3029.2,15.51407409]
[1764731834660,0.00291951,3029.3,3029.2,15.51407409]
[1764731837561,3.73831951,3029.3,3029.2,11.74247409]
[1764731837759,3.73831951,3029.3,3029.2,13.51987409]
[1764731837959,3.73831951,3029.3,3029.2,15.51407409]
[1764731838156,0.00291951,3029.3,3029.2,15.51407409]
[1764731838465,5.11714237,3031.5,3030.1,3.7716]
[1764731838466,6.9432,3030.2,3030.1,3.7716]
[1764731838953,3.7354,3030.2,3030.1,3.7716]
[1764731839159,6.9432,3030.5,3030.4,3.7716]
[1764731839355,3.21043735,3030.5,3030.4,3.7716]
[1764731839548,6.94583735,3030.5,3030.4,3.7716]
[1764731839755,6.94583735,3030.5,3030.4,1.7774]
[1764731840159,4.93333735,3030.5,3030.4,3.7716]
[1764731840361,3.21043735,3030.5,3030.4,3.7716]
[1764731840561,6.94583735,3030.5,3030.4,3.7716]
[1764731840859,3.73803735,3030.5,3030.4,3.7716]
[1764731841250,0.00263735,3030.5,3030.4,3.7716]
[1764731841649,3.73803735,3030.5,3030.4,3.7716]
[1764731841860,0.00263735,3030.5,3030.4,3.7716]
[1764731842260,3.73803735,3030.5,3030.4,3.7716]
[1764731842850,1.72553735,3030.5,3030.4,3.7716]
[1764731843149,3.73803735,3030.5,3030.4,3.7716]
[1764731843354,3.7354,3030.3,3030.2,3.7716]
[1764731843659,3.7354,3030.3,3030.2,13.8586]
[1764731844161,1.7229,3030.3,3030.2,13.8586]
[1764731845058,3.73803735,3030.5,3030.4,3.7716]
[1764731845356,0.00263735,3030.5,3030.4,3.7716]
[1764731846261,0.00263735,3030.5,3030.4,3.93656]
[1764731846463,3.2078,3030.9,3030.8,3.7716]
[1764731847166,6.9432,3031.3,3031.2,3.7716]
[1764731847359,6.9432,3031.3,3031.0,1.0987]
[1764731847360,3.7354,3031.1,3031.0,4.8703]
[1764731847856,3.7354,3030.9,3030.6,9.589]
[1764731848062,3.7354,3030.7,3030.6,13.3606]
[1764731848363,1.1252,3032.5,3031.9,1.9942]
[1764731848552,4.8606,3032.0,3031.9,1.78235254]
[1764731848762,4.8606,3032.0,3031.9,0.00495254]
[1764731849056,1.0966,3033.0,3031.9,0.00495254]
[1764731849057,4.832,3033.0,3032.9,1.7774]
[1764731849261,4.832,3033.0,3032.0,1.0987]
[1764731849262,4.4389,3033.5,3033.4,1.7774]
[1764731849457,4.44287001,3033.5,3033.4,1.77999447]
[1764731849656,4.44287001,3033.5,3033.4,0.00259447]
[1764731850458,4.44287001,3033.5,3033.4,1.77999447]
[1764731850662,0.00397001,3033.5,3033.4,3.77419447]
[1764731851966,0.00397001,3033.5,3033.4,0.00259447]
[1764731851967,4.86457001,3033.5,3033.4,0.00259447]
[1764731853060,3.625,3032.9,3032.8,4.6818]
[1764731853262,1.12917001,3033.5,3032.9,3.5843]
[1764731854160,4.6419,3033.0,3032.9,0.00420783]
[1764731854569,1.12917001,3033.5,3032.9,3.58850783]
[1764731854861,3.625,3033.3,3033.2,3.2078]
[1764731855064,1.892,3033.0,3032.9,1.79400783]
[1764731855265,1.892,3033.0,3032.9,3.58850783]
[1764731856071,1.12917001,3033.5,3032.9,3.58850783]
[1764731856260,2.9097,3033.0,3032.9,3.58850783]
[1764731856462,1.12917001,3033.5,3032.9,3.58850783]
[1764731856765,1.12917001,3033.5,3033.4,3.4866]
[1764731856963,4.76107001,3033.5,3032.9,0.00420783]
[1764731859361,4.7614,3033.0,3032.9,0.00420783]
[1764731859862,4.7614,3033.0,3032.9,1.74250783]
[1764731860067,4.7614,3033.0,3032.9,0.00420783]
[1764731863569,3.6319,3032.3,3032.2,3.37266]
[1764731864062,3.6319,3032.3,3032.2,3.2078]
[1764731864665,3.6319,3032.3,3032.2,0.00349722]
[1764731865570,4.40267459,3032.3,3032.2,0.00349722]
[1764731866267,2.9097,3032.0,3031.9,3.49155254]
[1764731866473,4.7614,3032.0,3031.9,0.16983254]
[1764731866674,4.7614,3032.0,3031.9,1.90813254]
[1764731866872,4.7614,3032.0,3031.9,0.16983254]
[1764731867071,4.7614,3032.0,3031.9,0.17310806]
[1764731867875,4.7614,3032.0,3031.9,0.00822806]
[1764731868177,2.9097,3032.0,3031.9,3.49482806]
[1764731868372,4.7614,3032.0,3031.9,3.49482806]
[1764731868569,4.7614,3032.0,3031.9,0.00822806]
[1764731868770,4.7614,3032.0,3031.9,1.74652806]
[1764731868969,1.1295,3032.0,3031.9,3.49482806]
[1764731869173,4.7614,3032.0,3031.9,3.49482806]
[1764731869373,4.7614,3032.0,3031.9,1.74652806]
[1764731870175,4.7614,3032.0,3031.9,0.00822806]
[1764731870777,6.8397,3032.2,3032.1,1.7383]
[1764731870977,4.7614,3032.0,3031.9,1.74652806]
[1764731871176,4.7614,3032.0,3031.9,0.00822806]
[1764731871766,4.7614,3032.0,3031.9,1.74652806]
[1764731872169,4.7614,3032.0,3031.9,0.00822806]
[1764731873382,5.53621396,3032.0,3031.9,0.00822806]
[1764731873585,5.53621396,3032.0,3031.4,3.2078]
[1764731873881,4.7614,3031.5,3031.4,3.2078]
[1764731874580,1.90502558,3031.5,3031.0,3.4866]
[1764731874783,4.7614,3031.5,3031.4,0.00273527]
[1764731874985,5.53707104,3031.5,3031.4,0.00273527]
[1764731875185,5.53707104,3031.5,3031.4,1.74103527]
[1764731875386,3.68537104,3031.5,3031.4,3.48933527]
[1764731875578,0.77567104,3031.5,3031.4,3.48933527]
[1764731875779,7.9692,3032.0,3031.9,1.7383]
[1764731876081,49.54551263,3032.0,3031.5,0.1649]
[1764731876286,4.40821263,3031.9,3031.8,1.7383]
[1764731877489,3.6319,3031.6,3031.5,0.1649]
[1764731877691,1.7802,3031.6,3031.5,3.6515]
[1764731878283,1.7802,3031.6,3031.5,0.1649]
[1764731878284,3.6319,3031.6,3031.5,0.1649]
[1764731878484,1.7802,3031.6,3031.5,3.6515]
[1764731878789,4.40955971,3031.6,3031.5,3.6515]
[1764731879386,3.6319,3031.6,3031.5,1.9032]
[1764731880183,3.6319,3031.6,3031.5,3.6515]
[1764731881687,4.3373,3032.0,3031.5,3.6515]
[1764731881887,1.7802,3031.6,3031.5,3.6515]
[1764731882088,3.6319,3031.6,3031.5,1.9032]
[1764731882792,3.6319,3031.6,3031.5,0.1649]
[1764731883394,3.6319,3031.6,3031.5,1.9032]
[1764731883685,3.2078,3032.0,3031.9,3.7706]
[1764731883887,0.77688859,3032.0,3031.9,1.67232845]
[1764731884088,4.8238,3032.0,3031.9,3.93547]
[1764731884285,4.8238,3031.5,3031.4,0.00273527]
[1764731884484,3.6843,3031.2,3030.2,2.36602381]
[1764731884695,1.1395,3031.0,3030.1,0.987]
[1764731885184,2.54304979,3030.9,3030.8,3.7706]
[1764731885386,1.7694,3030.9,3030.8,1.8486]
[1764731885579,2.54549842,3030.9,3030.8,1.85192437]
[1764731885787,4.46039842,3030.9,3030.8,1.85192437]
[1764731886185,0.77609842,3030.9,3030.8,3.77392437]
[1764731886386,0.00268683,3030.9,3030.8,3.77392437]
[1764731886588,4.46080383,3030.9,3030.8,0.00332437]
[1764731886796,3.68698683,3030.9,3030.8,0.00332437]
[1764731887094,3.68698683,3030.9,3030.8,1.85192437]
[1764731887790,0.00268683,3030.9,3030.8,5.28138282]
[1764731887993,1.1395,3031.5,3030.8,6.98172437]
[1764731888295,1.7694,3030.9,3030.8,3.77392437]
[1764731888894,1.77200437,3030.9,3030.8,3.77392437]
[1764731889096,0.00260437,3030.9,3030.8,3.77392437]
[1764731889494,0.00260437,3030.9,3030.8,3.93886437]
[1764731890503,4.8238,3031.5,3031.4,1.8486]
[1764731890683,3.68327287,3031.5,3031.4,3.7706]
[1764731890893,2.9089,3031.5,3031.4,3.7706]
[1764731891505,2.91284849,3031.5,3031.4,3.7706]
[1764731891999,0.00394849,3031.5,3031.4,3.7706]
[1764731892191,0.00394849,3031.5,3031.4,3.93551]
[1764731892392,4.9772,3032.2,3032.1,1.8486]
[1764731892597,4.9772,3032.2,3031.5,0.1649]
[1764731892598,3.6843,3031.6,3031.5,2.0135]
[1764731892991,1.7694,3031.6,3031.5,3.9355]
[1764731893298,1.77347805,3031.6,3031.5,3.9355]
[1764731893500,0.00407805,3031.6,3031.5,3.9355]
[1764731894400,0.00407805,3031.6,3031.5,5.44295845]
[1764731897003,0.00492387,3032.3,3032.2,3.7706]
[1764731897198,0.00492387,3032.3,3032.2,20.0994]
[1764731897903,0.00890608,3032.3,3032.2,20.0994]
[1764731898294,0.00890608,3032.3,3032.2,20.26426]
[1764731898491,4.8238,3033.0,3032.2,16.3288]
[1764731898800,4.8238,3033.0,3032.6,1.8486]
[1764731898801,1.7694,3032.7,3032.6,1.8486]
[1764731899001,4.8238,3033.0,3032.9,1.8486]
[1764731899300,3.2078,3033.1,3033.0,3.7706]
[1764731899505,6.89505375,3033.1,3033.0,0.00379918]
[1764731901007,3.68725375,3033.1,3033.0,0.00379918]
[1764731902009,6.89505375,3033.1,3033.0,0.00379918]
[1764731904512,3.6843,3032.8,3032.7,0.00495254]
[1764731905313,3.6843,3032.8,3032.7,0.00918341]
[1764731909824,3.6843,3032.8,3032.7,3.77978341]
[1764731910325,3.6843,3032.8,3032.7,0.00918341]
[1764731910716,3.6843,3032.8,3032.7,1.85778341]
[1764731911024,3.6843,3032.8,3032.7,0.00918341]
[1764731911219,3.6843,3032.8,3032.7,3.77978341]
[1764731911425,3.6843,3032.8,3032.7,1.85778341]
[1764731912122,1.7694,3032.8,3032.7,3.77978341]
[1764731912319,1.77235375,3033.1,3033.0,3.7706]
[1764731912720,3.68725375,3033.1,3033.0,1.8486]
[1764731913124,3.68725375,3033.1,3033.0,3.7706]
[1764731913422,0.00295375,3033.1,3033.0,3.93542]
[1764731914531,0.00295375,3033.1,3033.0,7.14322]
[1764731916231,1.70785375,3033.1,3033.0,7.14322]
[1764731916428,3.36295375,3033.1,3033.0,7.14322]
[1764731916824,3.36295375,3033.1,3033.0,3.2078]
[1764731917332,3.2801,3032.8,3032.7,0.00918341]
[1764731917731,3.2801,3032.8,3032.7,3.22988341]
[1764731918027,3.2801,3032.8,3032.7,1e-08]
[1764731922531,4.06859648,3032.8,3032.7,1e-08]
[1764731923740,4.2506,3032.5,3032.4,0.00495254]
[1764731924033,3.2801,3032.3,3032.2,13.121]
[1764731924833,3.2801,3032.3,3032.2,13.12516401]
[1764731925541,4.06890219,3032.3,3032.2,13.12516401]
[1764731926034,4.06890219,3032.3,3032.2,0.00416401]
[1764731926338,4.06890219,3032.3,3031.9,0.00495254]
[1764731926339,2.5955,3032.0,3031.9,3.22565254]
[1764731926839,4.1783,3032.5,3031.9,3.22565254]
[1764731927040,2.5955,3032.0,3031.9,3.22565254]
[1764731927244,4.2506,3032.0,3031.9,3.22892857]
[1764731927433,4.2506,3032.0,3031.9,1.61042857]
[1764731927938,4.2506,3032.0,3031.9,0.00822857]
[1764731928240,2.5955,3032.0,3031.9,3.22892857]
[1764731928438,4.2506,3032.0,3031.9,0.00822857]
[1764731928742,4.2506,3032.0,3031.9,1.61042857]
[1764731928937,2.5955,3032.0,3031.9,3.22892857]
[1764731929132,5.8334,3032.5,3032.4,1.6022]
[1764731929340,0.9705,3033.0,3032.4,3.2207]
[1764731929341,3.2078,3032.9,3032.4,3.2207]
[1764731930042,6.4879,3032.9,3032.8,1.6022]
[1764731930449,1.62795375,3033.1,3033.0,3.2207]
[1764731930639,3.28305375,3033.1,3033.0,1.6022]
[1764731931742,0.00295375,3033.1,3033.0,3.2207]
[1764731931942,0.00295375,3033.1,3033.0,3.38552]
[1764731932734,0.9705,3033.0,3032.4,5.57226271]
[1764731932934,4.2506,3033.0,3032.9,3.2207]
[1764731933233,4.2506,3033.0,3032.9,1.6022]
[1764731933439,4.2506,3033.0,3032.6,0.16484]
[1764731933641,1.625,3032.7,3032.6,3.38554]
[1764731934041,0.9705,3033.0,3032.6,3.38554]
[1764731934245,1.62795375,3033.1,3033.0,3.2207]
[1764731934540,3.28305375,3033.1,3033.0,1.6022]
[1764731934942,0.9705,3033.0,3032.6,0.16484]
[1764731935135,3.2801,3032.7,3032.6,0.16484]
[1764731935336,0.00295375,3033.1,3032.9,3.2207]
[1764731935647,1.62795375,3033.1,3033.0,3.2207]
[1764731935848,0.00295375,3033.1,3033.0,3.2207]
[1764731936046,1.62795375,3033.1,3033.0,3.2207]
[1764731936550,3.28305375,3033.1,3033.0,3.2207]
[1764731937252,0.00295375,3033.1,3033.0,3.99372]
[1764731937443,0.00295375,3033.1,3033.0,5.70233866]
[1764731937743,3.28305375,3033.1,3032.8,3.2078]
[1764731937940,3.2801,3032.9,3032.4,3.2078]
[1764731938138,3.2801,3032.9,3032.8,1.6022]
[1764731938442,3.2801,3032.9,3032.8,3.2207]
[1764731938847,3.2801,3032.9,3032.4,3.2078]
[1764731939148,3.2801,3032.9,3032.8,1.6022]
[1764731939350,2.5955,3033.0,3032.9,3.2207]
[1764731939547,4.2506,3033.0,3032.9,3.2207]
[1764731939747,1.6551,3032.7,3032.6,3.2207]
[1764731939950,1.625,3032.7,3032.6,3.2207]
[1764731940446,3.2801,3032.7,3032.6,3.2207]
[1764731940641,2.5955,3033.0,3032.9,1.6022]
[1764731940843,0.00295375,3033.1,3033.0,3.2207]
[1764731941156,0.00295375,3033.1,3033.0,3.38552]
[1764731945157,1.62795375,3033.1,3033.0,3.38552]
[1764731945459,3.34915375,3033.1,3033.0,2.84782]
[1764731945649,3.34915375,3033.1,3033.0,0.16482]
[1764731947059,3.34915375,3033.1,3032.3,6.05565]
[1764731947060,1.5456,3032.4,3032.3,6.05565]
[1764731947461,0.9625,3032.5,3032.3,6.05565]
[1764731947462,2.5081,3032.5,3032.4,2.683]
[1764731948962,3.2668,3032.4,3032.3,4.71415]
[1764731949365,2.5081,3032.5,3032.4,2.683]
[1764731949861,4.2293,3032.5,3032.4,2.683]
[1764731950560,4.2293,3032.5,3032.4,1.3415]
[1764731950862,3.2668,3032.4,3032.3,4.71415]
[1764731951063,3.2668,3032.4,3032.3,0.16485]
[1764731951256,3.2668,3032.3,3032.2,11.74]
[1764731951653,9.2668,3032.3,3031.9,3.21602857]
[1764731951856,4.2293,3032.0,3031.9,0.00822857]
[1764731952056,0.9625,3032.0,3031.9,2.69122857]
[1764731952260,4.2293,3032.0,3031.9,0.00822857]
[1764731954562,4.2293,3032.0,3031.9,1.34972857]
[1764731954966,4.2293,3032.0,3031.9,0.00822857]
[1764731955465,2.5081,3032.0,3031.9,2.69122857]
[1764731955659,4.2293,3032.0,3031.9,2.69122857]
[1764731955860,4.2293,3032.0,3031.9,1.34972857]
[1764731956466,4.2293,3032.0,3031.9,2.69122857]
[1764731956657,2.5081,3032.0,3031.9,2.69122857]
[1764731957069,4.2293,3032.0,3031.9,2.69122857]
[1764731957868,2.5081,3032.0,3031.9,2.69122857]
[1764731958076,4.1703,3032.5,3032.1,2.683]
[1764731958259,4.2293,3032.0,3031.9,5.89902857]
[1764731958459,2.5081,3032.0,3031.9,6.06389857]
[1764731958660,0.9625,3032.0,3031.9,6.06389857]
[1764731958870,0.9625,3032.5,3031.9,6.06389857]
[1764731959268,0.9625,3032.0,3031.9,6.06389857]
[1764731959864,0.9625,3032.5,3031.9,6.06389857]
[1764731960069,4.2293,3032.5,3032.4,1.3415]
[1764731960369,3.2668,3032.1,3032.0,0.16487]
[1764731960572,3.2668,3032.1,3032.0,1.50637]
[1764731960868,3.2668,3032.1,3032.0,2.84787]
[1764731961063,3.2668,3032.1,3032.0,1.50637]
[1764731961267,4.2293,3032.0,3031.9,3.21602857]
[1764731962166,4.2293,3032.0,3031.9,4.55752857]
[1764731962361,2.5081,3032.0,3031.9,6.06390857]
[1764731962561,0.9625,3032.0,3031.9,6.06390857]
[1764731962965,7.4371,3032.5,3032.4,1.3415]
[1764731963168,4.1703,3032.5,3032.4,2.84785]
[1764731963472,3.2078,3032.5,3032.4,2.84785]
[1764731963767,4.1703,3032.5,3032.4,2.84785]
[1764731963970,5.7159,3032.5,3032.4,2.84785]
[1764731964358,2.5081,3032.5,3032.4,2.84785]
[1764731967379,4.7534,3032.9,3032.8,2.683]
[1764731967672,6.4746,3032.9,3032.5,12.231]
[1764731968274,6.4746,3032.9,3032.8,1.3415]
[1764731968575,6.4746,3032.9,3032.8,1.50633]
[1764731969675,6.4746,3032.9,3032.8,0.16483]
[1764731969875,6.4746,3032.9,3032.8,1.50633]
[1764731970373,3.2668,3032.6,3032.5,12.231]
[1764731970569,3.2668,3032.6,3032.5,14.914]
[1764731971979,3.2668,3032.6,3032.5,12.39585]
[1764731972270,3.2668,3032.6,3032.5,13.73735]
[1764731972980,3.2668,3032.6,3032.5,12.39585]
[1764731973475,3.2668,3032.6,3032.5,13.28455]
[1764731975077,3.2668,3032.6,3032.5,14.17325]
[1764731975271,2.6021,3032.6,3032.5,12.39585]
[1764731975470,2.6021,3032.6,3032.5,13.24405]
[1764731975880,2.6021,3032.6,3032.5,14.09225]
[1764731976479,2.6021,3032.6,3032.5,12.231]
[1764731976877,2.6021,3032.6,3032.5,14.09225]
[1764731977277,2.6021,3032.6,3032.5,12.39585]
[1764731979277,0.9625,3033.0,3032.6,0.16484]
[1764731979485,3.6542,3033.0,3032.9,0.8482]
[1764731979779,3.04575922,3033.0,3032.9,0.8482]
[1764731979979,3.6542,3033.0,3032.9,0.8482]
[1764731980983,2.6917,3032.9,3032.8,1.01303]
[1764731981781,0.9625,3033.0,3032.9,1.6964]
[1764731982076,3.6542,3033.0,3032.9,1.6964]
[1764731982384,3.6542,3033.0,3032.9,1.86122]
[1764731982580,0.00295375,3033.1,3032.5,12.231]
[1764731982581,0.00295375,3033.1,3033.0,1.86122]
[1764731983082,1.39345375,3033.1,3033.0,1.86122]
[1764731984069,2.69465375,3033.1,3033.0,1.86122]
[1764731984473,2.69465375,3033.1,3033.0,1.01302]
[1764731984676,2.69465375,3033.1,3033.0,1.86122]
[1764731984876,1.39345375,3033.1,3033.0,1.86122]
[1764731985183,2.69465375,3033.1,3033.0,1.86122]
[1764731986382,1.39345375,3033.1,3033.0,1.86122]
[1764731987384,2.69465375,3033.1,3033.0,1.86122]
[1764731988384,2.69465375,3033.1,3033.0,2.86527632]
[1764731988678,2.69465375,3033.1,3033.0,1.16887632]
[1764731989689,2.69465375,3033.1,3033.0,2.01707632]
[1764731990687,2.69465375,3033.1,3033.0,5.22487632]
[1764731991085,1.39345375,3033.1,3033.0,7.07713264]
[1764731991286,2.69465375,3033.1,3033.0,4.22082]
[1764731991586,2.69465375,3033.1,3033.0,6.07307632]
[1764731993182,1.39345375,3033.1,3033.0,7.07713264]
[1764731993385,2.69665254,3033.4,3033.3,1.8612]
[1764731993584,1.39545254,3033.4,3033.3,2.86525632]
[1764731993786,2.69665254,3033.4,3033.3,2.86525632]
[1764731994183,1.3012,3033.9,3033.8,0.16477]
[1764731994383,1.39440508,3033.9,3033.8,2.86522632]
[1764731994586,0.00390508,3033.9,3033.8,2.86522632]
[1764731994791,1.39440508,3033.9,3033.8,1.86117]
[1764731996394,2.69560508,3033.9,3033.8,0.16477]
[1764731996994,2.69560508,3033.9,3033.8,1.01297]
[1764731997393,2.69560508,3033.9,3033.8,1.86117]
[1764731997984,2.69560508,3033.9,3033.8,1.01297]
[1764731998286,2.69560508,3033.9,3033.8,1.86117]
[1764731998491,2.69560508,3033.9,3033.8,1.01297]
[1764731998892,2.69560508,3033.9,3033.8,0.16477]
[1764732000894,2.6917,3033.7,3033.6,3.2078]
[1764732001893,2.6917,3033.6,3033.5,0.00494412]
[1764732002996,2.6917,3033.6,3033.5,4.412e-05]
[1764732003692,8.6917,3033.6,3033.5,4.412e-05]
[1764732005002,3.4347,3033.0,3032.9,0.16482]
[1764732007291,2.6426,3032.7,3032.6,0.00494412]
[1764732007498,3.4347,3032.5,3032.4,3.2078]
[1764732012391,3.4347,3032.5,3032.1,0.00494412]
[1764732012392,2.6426,3032.2,3032.1,0.00494412]
[1764732012805,2.6426,3032.2,3032.1,4.412e-05]
[1764732017405,2.6426,3031.4,3031.3,3.2078]
[1764732018005,2.6426,3031.4,3031.3,4.4507]
[1764732018412,2.64591,3031.4,3031.3,6.78908719]
[1764732021214,2.64591,3031.4,3031.3,3.58128719]
[1764732022915,0.00331,3031.4,3031.3,3.58128719]
[1764732023309,0.00331,3031.4,3031.3,2.74082965]
[1764732023613,3.2078,3031.8,3031.7,2.73769]
[1764732023809,3.2078,3031.8,3031.7,3.74305754]
[1764732024317,5.8504,3032.3,3032.2,1.2429]
[1764732024616,5.85319755,3032.3,3032.2,1.2429]
[1764732024911,2.6426,3032.2,3032.1,2.24826754]
[1764732025116,2.6426,3031.9,3031.8,2.24826754]
[1764732025421,0.7921,3032.0,3031.7,2.73769]
[1764732025422,2.6426,3031.8,3031.7,2.73769]
[1764732026126,3.4347,3032.0,3031.9,2.5728]
[1764732026815,1.2377,3032.0,3031.9,2.5728]
[1764732027217,2.6426,3031.9,3031.8,3.57816754]
[1764732027821,2.6426,3031.8,3031.7,1.40779]
[1764732028023,2.6426,3031.8,3031.7,2.73769]
[1764732028323,1.2377,3032.0,3031.9,2.5728]
[1764732028520,2.6426,3032.0,3031.9,3.57816754]
[1764732029316,2.6426,3031.8,3031.7,0.16489]
[1764732029521,2.6426,3031.4,3031.3,5.78371965]
[1764732029721,1.2377,3031.4,3031.3,5.78371965]
[1764732030219,1.2377,3031.4,3031.3,5.94862965]
[1764732030525,0.7921,3032.0,3031.3,5.94862965]
[1764732030722,2.6426,3031.7,3031.6,2.24826754]
[1764732031020,40.8,3031.9,3031.8,1.2429]
[1764732031622,2.6426,3031.9,3031.8,1.2429]
[1764732032215,2.6426,3031.9,3031.8,2.5728]
[1764732032416,2.6426,3031.7,3031.6,3.57816754]
[1764732032819,2.6426,3031.4,3031.3,0.00311965]
[1764732033024,5.8504,3031.4,3031.3,1.24601965]
[1764732033220,5.8504,3031.4,3031.3,2.51611965]
[1764732033819,5.8504,3031.4,3031.3,2.68102965]
[1764732034521,4.4455,3031.4,3031.3,2.68102965]
[1764732034720,5.634,3031.8,3031.7,2.69919]
[1764732035021,5.634,3031.8,3031.7,1.42909]
[1764732035222,5.634,3031.8,3031.7,2.69919]
[1764732037522,2.4462,3031.4,3031.3,1.19781965]
[1764732037720,2.4462,3031.4,3031.3,2.38421965]
[1764732037927,2.4462,3031.4,3031.3,3.38958719]
[1764732038516,5.654,3031.4,3031.3,3.38958719]
[1764732039024,3.2078,3031.4,3031.3,3.55449719]